[Event "European School-ch 2019"]
[Site "Mamaia"]
[Date "2019.06.01"]
[Round "2.34"]
[White "Tutunculer, Cagan"]
[Black "Danila, Tudor-Gabriel"]
[Result "1-0"]
[ECO "A36"]
[WhiteElo "1193"]
[BlackElo "1336"]
[Annotator "NA"]
[PlyCount "73"]
[EventDate "2019.05.31"]
[EventType "swiss"]
[EventCountry "ROU"]
[SourceTitle "playchess.com"]
[Source "ChessBase"]
[SourceQuality "1"]
[TimeControl "40/5400+30:1800+30"]

1. c4 {[%emt 0:00:00]} c5 {[%emt 0:00:00]} 2. Nc3 {[%emt 0:00:00]} g6 {[%emt 0:00:00]} 3. g3 {[%emt 0:00:07]} Bg7 {[%emt 0:00:00]} 4. Bg2 {[%emt 0:00:15]} Nc6 {[%emt 0:00:00]} 5. e4 {[%emt 0:00:23]} d6 {[%emt 0:00:12]} 6. d3 {[%emt 0:00:29]} e5 {[%emt 0:00:09]} 7. Nge2 {[%emt 0:00:39]} Nge7 {[%emt 0:00:54]} 8. O-O {[%emt 0:00:28]} O-O {[%emt 0:00:05]} 9. Be3 {[%emt 0:00:39]} Qb6 {[%emt 0:00:43]} 10. Qd2 {[%emt 0:00:50]} f5 {[%emt 0:00:14]} 11. f4 {[%emt 0:00:17]} Be6 {[%emt 0:00:33]} 12. Rac1 {[%emt 0:01:04]} Rac8 {[%emt 0:03:52]} 13. Nd5 {[%emt 0:02:30]} Qd8 {[%emt 0:00:14]} 14. Nec3 {[%emt 0:03:03]} Qd7 {[%emt 0:01:50]} 15. a3 {[%emt 0:10:03]} Nd4 {[%emt 0:00:39]} 16. Bxd4 {[%emt 0:01:35]} cxd4 {[%emt 0:00:17]} 17. Nxe7+ {[%emt 0:00:55]} Qxe7 {[%emt 0:00:24]} 18. Nd5 {[%emt 0:00:19]} Qd7 {[%emt 0:00:33]} 19. b4 {[%emt 0:01:14]} b6 {[%emt 0:00:47]} 20. Qb2 {[%emt 0:02:25]} Rfe8 {[%emt 0:03:50]} 21. b5 {[%emt 0:01:33]} fxe4 {[%emt 0:03:23]} 22. Bxe4 {[%emt 0:00:41]} Bf5 {[%emt 0:00:26]} 23. Rce1 {[%emt 0:04:30]} Bxe4 {[%emt 0:00:46]} 24. Rxe4 {[%emt 0:00:17]} Qb7 {[%emt 0:06:43]} 25. Qg2 {[%emt 0:03:22]} Qd7 {[%emt 0:00:59]} 26. Ra1 {[%emt 0:01:12]} Ra8 {[%emt 0:03:28]} 27. a4 {[%emt 0:00:42]} Rec8 {[%emt 0:02:18]} 28. a5 {[%emt 0:01:10]} Qd8 {[%emt 0:00:05]} 29. Qd2 {[%emt 0:02:17]} Bh6 {[%emt 0:07:59]} 30. Qa2 {[%emt 0:01:07]} Bg7 {[%emt 0:01:03]} 31. c5 {[%emt 0:03:12]} Kh8 {[%emt 0:03:57]} 32. cxb6 {[%emt 0:00:33]} Rc5 {[%emt 0:01:05]} 33. Nc7 {[%emt 0:00:30]} Rc8 {[%emt 0:00:28]} 34. Qf7 {[%emt 0:04:10]} d5 {[%emt 0:01:12]} 35. Ree1 {[%emt 0:00:27]} e4 {[%emt 0:05:58]} 36. Ne6 {[%emt 0:00:38]} Qd6 {[%emt 0:00:38]} 37. Qxg7# {[%emt 0:00:15]} 1-0

[Event "European School-ch 2019"]
[Site "Mamaia"]
[Date "2019.06.01"]
[Round "2.41"]
[White "Mirioglu, Eylul"]
[Black "Mgeladze, Kesaria"]
[Result "0-1"]
[ECO "B01"]
[WhiteElo "1048"]
[BlackElo "1322"]
[Annotator "NA"]
[PlyCount "80"]
[EventDate "2019.05.31"]
[EventType "swiss"]
[EventCountry "ROU"]
[SourceTitle "playchess.com"]
[Source "ChessBase"]
[SourceQuality "1"]
[TimeControl "40/5400+30:1800+30"]

1. e4 {[%emt 0:00:00]} d5 {[%emt 0:00:00]} 2. exd5 {[%emt 0:00:00]} Qxd5 {[%emt 0:00:00]} 3. Nc3 {[%emt 0:00:00]} Qa5 {[%emt 0:00:00]} 4. d4 {[%emt 0:00:08]} c6 {[%emt 0:00:00]} 5. Bd2 {[%emt 0:00:14]} Nf6 {[%emt 0:00:18]} 6. h3 {[%emt 0:02:53]} Bf5 {[%emt 0:00:55]} 7. Nf3 {[%emt 0:02:27]} e6 {[%emt 0:00:45]} 8. a3 {[%emt 0:03:38]} Be7 {[%emt 0:01:39]} 9. Be2 {[%emt 0:02:34]} Nbd7 {[%emt 0:00:52]} 10. O-O {[%emt 0:01:41]} O-O {[%emt 0:00:50]} 11. Re1 {[%emt 0:04:35]} Qc7 {[%emt 0:01:15]} 12. Bd3 {[%emt 0:03:35]} Bg6 {[%emt 0:03:29]} 13. Bxg6 {[%emt 0:02:12]} hxg6 {[%emt 0:00:13]} 14. Bg5 {[%emt 0:02:08]} Nb6 {[%emt 0:05:57]} 15. Ne4 {[%emt 0:02:28]} Nxe4 {[%emt 0:01:53]} 16. Bxe7 {[%emt 0:01:50]} Nxf2 {[%emt 0:00:59]} 17. Kxf2 {[%emt 0:02:11]} Qxe7 {[%emt 0:00:12]} 18. b3 {[%emt 0:02:06]} Rad8 {[%emt 0:02:58]} 19. c3 {[%emt 0:02:49]} Qf6 {[%emt 0:03:52]} 20. Kg1 {[%emt 0:01:42]} c5 {[%emt 0:04:52]} 21. a4 {[%emt 0:02:24]} Nd5 {[%emt 0:00:57]} 22. dxc5 {[%emt 0:02:58]} Nxc3 {[%emt 0:00:56]} 23. Qc2 {[%emt 0:02:31]} Rd5 {[%emt 0:02:59]} 24. b4 {[%emt 0:02:15]} a5 {[%emt 0:03:21]} 25. Ne5 {[%emt 0:08:53]} axb4 {[%emt 0:03:06]} 26. Nf3 {[%emt 0:03:47]} Rxc5 {[%emt 0:00:38]} 27. Rab1 {[%emt 0:04:45]} Rfc8 28. Qb3 {[%emt 0:04:53]} Nxb1 {[%emt 0:02:37]} 29. Qxb1 {[%emt 0:01:19]} Qf4 {[%emt 0:01:01]} 30. Kf2 {[%emt 0:02:30]} Rc2+ {[%emt 0:00:16]} 31. Re2 {[%emt 0:02:08]} Qe4 {[%emt 0:01:37]} 32. Nd2 {[%emt 0:02:45]} Qd4+ {[%emt 0:00:19]} 33. Kg3 {[%emt 0:01:41]} R8c3+ {[%emt 0:00:30]} 34. Nf3 {[%emt 0:01:27]} Rxe2 {[%emt 0:00:16]} 35. Kh2 {[%emt 0:02:29]} Qf4+ {[%emt 0:00:16]} 36. Kg1 {[%emt 0:00:36]} Rc1+ {[%emt 0:00:17]} 37. Qxc1 {[%emt 0:00:24]} Qxc1+ {[%emt 0:00:05]} 38. Kh2 {[%emt 0:00:09]} Qf1 {[%emt 0:00:09]} 39. Nh4 {[%emt 0:00:16]} Qf4+ {[%emt 0:00:04]} 40. Kh1 {[%emt 0:00:00]} Re1# {[%emt 0:00:00]} 0-1

[Event "European School-ch 2019"]
[Site "Mamaia"]
[Date "2019.06.01"]
[Round "2.42"]
[White "Voronaya, Eva"]
[Black "Shatil, Or"]
[Result "0-1"]
[ECO "A48"]
[WhiteElo "1005"]
[BlackElo "1199"]
[Annotator "NA"]
[PlyCount "94"]
[EventDate "2019.05.31"]
[EventType "swiss"]
[EventCountry "ROU"]
[SourceTitle "playchess.com"]
[Source "ChessBase"]
[SourceQuality "1"]
[TimeControl "40/5400+30:1800+30"]

1. d4 {[%emt 0:00:00]} Nf6 {[%emt 0:00:00]} 2. Nf3 {[%emt 0:00:00]} g6 {[%emt 0:00:00]} 3. Nc3 {[%emt 0:00:00]} d5 {[%emt 0:00:06]} 4. Bf4 {[%emt 0:00:45]} Bg7 {[%emt 0:00:43]} 5. Nb5 {[%emt 0:02:38]} Na6 {[%emt 0:01:10]} 6. e3 {[%emt 0:00:29]} O-O {[%emt 0:01:23]} 7. Bd3 {[%emt 0:01:22]} c5 {[%emt 0:04:40]} 8. dxc5 {[%emt 0:02:47]} Nxc5 {[%emt 0:07:06]} 9. Nc7 {[%emt 0:01:33]} Rb8 {[%emt 0:01:07]} 10. Nxd5 {[%emt 0:14:11]} Nxd5 {[%emt 0:01:19]} 11. Bxb8 {[%emt 0:00:18]} Bxb2 {[%emt 0:01:43]} 12. Bc4 {[%emt 0:16:25]} Nc3 {[%emt 0:02:18]} 13. Qxd8 {[%emt 0:08:41]} Rxd8 {[%emt 0:00:08]} 14. Be2 {[%emt 0:14:48]} Bxa1 {[%emt 0:00:34]} 15. Bxa7 {[%emt 0:02:11]} N5e4 {[%emt 0:11:52]} 16. Bd4 {[%emt 0:02:45]} Nxe2 {[%emt 0:02:45]} 17. Kxe2 {[%emt 0:02:43]} Bxd4 {[%emt 0:00:24]} 18. Nxd4 {[%emt 0:00:35]} e5 {[%emt 0:01:12]} 19. Nb3 {[%emt 0:00:46]} b6 {[%emt 0:01:30]} 20. f3 {[%emt 0:02:41]} Ba6+ {[%emt 0:00:26]} 21. Ke1 {[%emt 0:01:29]} Nc3 {[%emt 0:01:15]} 22. Kf2 {[%emt 0:02:09]} Nd1+ {[%emt 0:02:02]} 23. Kg3 {[%emt 0:00:35]} Nxe3 {[%emt 0:00:34]} 24. Re1 {[%emt 0:02:08]} Nf5+ {[%emt 0:00:34]} 25. Kh3 {[%emt 0:01:25]} f6 {[%emt 0:01:59]} 26. g4 {[%emt 0:02:22]} Nd6 {[%emt 0:01:54]} 27. Kg3 {[%emt 0:01:27]} Kf7 {[%emt 0:02:08]} 28. Rd1 {[%emt 0:00:23]} Ne4+ {[%emt 0:01:12]} 29. fxe4 {[%emt 0:00:11]} Rxd1 {[%emt 0:00:09]} 30. Kg2 {[%emt 0:00:24]} Bc4 {[%emt 0:00:51]} 31. Kf2 {[%emt 0:00:31]} Bxb3 {[%emt 0:00:17]} 32. axb3 {[%emt 0:00:08]} Rd2+ {[%emt 0:00:10]} 33. Ke3 {[%emt 0:00:11]} Rxc2 {[%emt 0:00:27]} 34. h3 {[%emt 0:00:19]} Rc3+ {[%emt 0:00:04]} 35. Ke2 {[%emt 0:00:09]} Rxh3 {[%emt 0:00:09]} 36. b4 {[%emt 0:00:15]} Rg3 {[%emt 0:00:16]} 37. Kf2 {[%emt 0:00:29]} Rxg4 {[%emt 0:00:09]} 38. Kf3 {[%emt 0:00:13]} h5 {[%emt 0:00:19]} 39. b5 {[%emt 0:00:09]} Rg5 {[%emt 0:00:14]} 40. Ke3 {[%emt 0:00:00]} h4 {[%emt 0:00:00]} 41. Kf3 {[%emt 0:00:19]} h3 {[%emt 0:00:14]} 42. Kf2 h2 {[%emt 0:00:14]} 43. Ke3 {[%emt 0:00:13]} h1=Q {[%emt 0:00:09]} 44. Kd3 {[%emt 0:00:09]} Rg3+ {[%emt 0:00:08]} 45. Kc4 {[%emt 0:00:09]} Qc1+ {[%emt 0:00:08]} 46. Kb4 {[%emt 0:00:21]} Qc3+ {[%emt 0:00:17]} 47. Ka4 {[%emt 0:00:09]} Qa3# {[%emt 0:00:08]} 0-1

[Event "European School-ch 2019"]
[Site "Mamaia"]
[Date "2019.06.01"]
[Round "2.43"]
[White "Korolchuk, Vladyslava"]
[Black "Ismayilova, Khanim"]
[Result "0-1"]
[ECO "A27"]
[WhiteElo "1032"]
[BlackElo "1225"]
[Annotator "NA"]
[PlyCount "126"]
[EventDate "2019.05.31"]
[EventType "swiss"]
[EventCountry "ROU"]
[SourceTitle "playchess.com"]
[Source "ChessBase"]
[SourceQuality "1"]
[TimeControl "40/5400+30:1800+30"]

1. c4 {[%emt 0:00:00]} e5 {[%emt 0:00:55]} 2. Nc3 {[%emt 0:00:00]} Nc6 {[%emt 0:00:09]} 3. Nf3 {[%emt 0:00:24]} d6 {[%emt 0:01:58]} 4. g3 {[%emt 0:01:01]} g6 {[%emt 0:00:05]} 5. Bg2 {[%emt 0:00:33]} Bg7 {[%emt 0:00:05]} 6. d3 {[%emt 0:00:42]} f5 {[%emt 0:00:17]} 7. Rb1 {[%emt 0:01:13]} Nf6 {[%emt 0:00:27]} 8. Bd2 {[%emt 0:01:14]} O-O {[%emt 0:03:19]} 9. Qc1 {[%emt 0:02:24]} Be6 {[%emt 0:02:58]} 10. Bh6 {[%emt 0:03:25]} Qe7 {[%emt 0:03:00]} 11. Bxg7 {[%emt 0:01:21]} Kxg7 {[%emt 0:03:16]} 12. b3 {[%emt 0:03:02]} Rad8 {[%emt 0:03:23]} 13. a3 {[%emt 0:04:37]} Bf7 {[%emt 0:05:49]} 14. e4 {[%emt 0:06:22]} Qd7 {[%emt 0:01:34]} 15. Qd2 {[%emt 0:01:29]} Rfe8 {[%emt 0:01:04]} 16. O-O {[%emt 0:01:50]} Nd4 {[%emt 0:03:06]} 17. Ng5 {[%emt 0:01:16]} c5 {[%emt 0:02:14]} 18. exf5 {[%emt 0:01:23]} Nxf5 {[%emt 0:01:35]} 19. Nxf7 {[%emt 0:01:05]} Qxf7 {[%emt 0:00:11]} 20. Nd5 {[%emt 0:01:02]} b6 {[%emt 0:04:13]} 21. Rfe1 {[%emt 0:02:35]} Ne7 {[%emt 0:03:15]} 22. Nxe7 {[%emt 0:03:16]} Qxe7 {[%emt 0:00:22]} 23. f4 {[%emt 0:01:25]} Qd7 {[%emt 0:02:10]} 24. b4 {[%emt 0:02:54]} Qf5 {[%emt 0:07:33]} 25. fxe5 {[%emt 0:02:26]} Rxe5 {[%emt 0:05:23]} 26. Rxe5 {[%emt 0:02:20]} Qxe5 {[%emt 0:02:37]} 27. Re1 {[%emt 0:01:28]} Qd4+ {[%emt 0:00:42]} 28. Qe3 {[%emt 0:02:23]} Qxe3+ {[%emt 0:00:35]} 29. Rxe3 {[%emt 0:00:08]} Re8 {[%emt 0:00:03]} 30. Rxe8 {[%emt 0:00:57]} Nxe8 {[%emt 0:02:45]} 31. Kf2 {[%emt 0:01:24]} Kf6 {[%emt 0:00:02]} 32. Ke3 {[%emt 0:00:42]} Ke5 {[%emt 0:00:03]} 33. h3 {[%emt 0:01:43]} Nc7 {[%emt 0:01:47]} 34. h4 {[%emt 0:01:54]} h6 {[%emt 0:01:18]} 35. g4 {[%emt 0:01:41]} g5 {[%emt 0:00:03]} 36. hxg5 {[%emt 0:01:31]} hxg5 {[%emt 0:00:01]} 37. Bf3 {[%emt 0:02:04]} d5 {[%emt 0:00:59]} 38. Be2 {[%emt 0:03:13]} d4+ {[%emt 0:03:10]} 39. Kf3 {[%emt 0:00:49]} cxb4 {[%emt 0:00:10]} 40. axb4 {[%emt 0:00:00]} a5 {[%emt 0:00:00]} 41. bxa5 {[%emt 0:01:00]} bxa5 {[%emt 0:00:02]} 42. Bd1 {[%emt 0:00:30]} Ne6 {[%emt 0:00:01]} 43. Ke2 {[%emt 0:01:43]} Nc5 {[%emt 0:00:17]} 44. Kd2 {[%emt 0:00:33]} Kf4 {[%emt 0:00:44]} 45. Be2 {[%emt 0:03:02]} Ke5 {[%emt 0:01:12]} 46. Kc2 {[%emt 0:00:45]} Kf4 {[%emt 0:01:50]} 47. Kd2 {[%emt 0:00:45]} Kg3 {[%emt 0:00:08]} 48. Bd1 {[%emt 0:00:53]} Kf2 {[%emt 0:00:27]} 49. Bc2 {[%emt 0:00:30]} a4 {[%emt 0:00:19]} 50. Kc1 {[%emt 0:00:40]} Kf3 {[%emt 0:00:39]} 51. Bd1+ {[%emt 0:00:31]} Ke3 {[%emt 0:02:43]} 52. Kb2 {[%emt 0:00:51]} Kxd3 {[%emt 0:00:08]} 53. Ka3 {[%emt 0:00:38]} Kxc4 {[%emt 0:00:05]} 54. Bxa4 {[%emt 0:00:13]} Nxa4 {[%emt 0:00:01]} 55. Kxa4 {[%emt 0:00:12]} d3 {[%emt 0:00:07]} 56. Ka3 {[%emt 0:00:10]} d2 {[%emt 0:00:03]} 57. Ka2 {[%emt 0:00:21]} d1=Q {[%emt 0:00:04]} 58. Kb2 {[%emt 0:00:24]} Qb3+ {[%emt 0:00:12]} 59. Kc1 {[%emt 0:00:24]} Qd3 {[%emt 0:00:35]} 60. Kb2 {[%emt 0:00:12]} Qc3+ {[%emt 0:00:07]} 61. Kb1 {[%emt 0:00:32]} Qd2 {[%emt 0:00:54]} 62. Ka1 {[%emt 0:00:54]} Kb3 {[%emt 0:00:09]} 63. Kb1 {[%emt 0:00:05]} Qd1# {[%emt 0:00:07]} 0-1

[Event "European School-ch 2019"]
[Site "Mamaia"]
[Date "2019.06.01"]
[Round "2.45"]
[White "Mikhailina, Olga"]
[Black "Zhapova, Yana"]
[Result "0-1"]
[ECO "B20"]
[WhiteElo "1338"]
[BlackElo "1804"]
[Annotator "NA"]
[PlyCount "144"]
[EventDate "2019.05.31"]
[EventType "swiss"]
[EventCountry "ROU"]
[SourceTitle "playchess.com"]
[Source "ChessBase"]
[SourceQuality "1"]
[TimeControl "40/5400+30:1800+30"]

1. e4 {[%emt 0:00:00]} c5 {[%emt 0:00:00]} 2. Ne2 {[%emt 0:00:00]} d6 {[%emt 0:00:56]} 3. g3 {[%emt 0:00:00]} Nc6 {[%emt 0:01:16]} 4. Bg2 {[%emt 0:00:16]} g6 {[%emt 0:00:53]} 5. c3 {[%emt 0:00:52]} Bg7 {[%emt 0:03:26]} 6. d4 {[%emt 0:10:23]} cxd4 {[%emt 0:01:52]} 7. cxd4 {[%emt 0:01:15]} Nf6 {[%emt 0:01:11]} 8. Nbc3 {[%emt 0:02:43]} O-O {[%emt 0:01:26]} 9. O-O {[%emt 0:01:03]} Bd7 {[%emt 0:02:39]} 10. h3 {[%emt 0:00:58]} Rc8 {[%emt 0:04:17]} 11. Be3 {[%emt 0:01:10]} a6 {[%emt 0:10:31]} 12. Qd2 {[%emt 0:09:11]} b5 {[%emt 0:00:43]} 13. b3 {[%emt 0:10:31]} e5 {[%emt 0:11:34]} 14. f4 {[%emt 0:13:00]} Qe7 {[%emt 0:07:26]} 15. fxe5 {[%emt 0:10:39]} dxe5 {[%emt 0:00:12]} 16. d5 {[%emt 0:01:35]} b4 {[%emt 0:15:39]} 17. Nd1 {[%emt 0:11:48]} Nd4 {[%emt 0:05:48]} 18. Bxd4 {[%emt 0:03:16]} exd4 {[%emt 0:00:09]} 19. Nf2 {[%emt 0:01:37]} Bb5 {[%emt 0:05:39]} 20. Rac1 {[%emt 0:06:14]} d3 {[%emt 0:02:27]} 21. Nf4 {[%emt 0:00:58]} Nd7 {[%emt 0:09:16]} 22. N4xd3 {[%emt 0:05:40]} Bc3 {[%emt 0:00:13]} 23. Qf4 {[%emt 0:01:32]} Ne5 {[%emt 0:04:52]} 24. Rfd1 {[%emt 0:01:48]} f5 {[%emt 0:03:08]} 25. Nxe5 {[%emt 0:03:31]} Bxe5 {[%emt 0:00:05]} 26. Qf3 {[%emt 0:01:31]} Rxc1 {[%emt 0:02:15]} 27. Rxc1 {[%emt 0:00:04]} fxe4 {[%emt 0:00:17]} 28. Qxe4 {[%emt 0:00:21]} Qg5 {[%emt 0:00:31]} 29. Re1 {[%emt 0:01:59]} Bxg3 {[%emt 0:00:25]} 30. Qe6+ {[%emt 0:00:31]} Kh8 {[%emt 0:03:44]} 31. Ne4 {[%emt 0:00:23]} Qf4 {[%emt 0:00:35]} 32. Nxg3 {[%emt 0:00:30]} Qxg3 {[%emt 0:00:04]} 33. Qe5+ {[%emt 0:00:31]} Qxe5 {[%emt 0:00:08]} 34. Rxe5 {[%emt 0:00:03]} Kg7 {[%emt 0:01:30]} 35. Be4 {[%emt 0:00:50]} Rf1+ {[%emt 0:00:48]} 36. Kg2 {[%emt 0:00:26]} Re1 {[%emt 0:00:41]} 37. Re6 {[%emt 0:00:40]} Re2+ 38. Kg3 {[%emt 0:00:28]} Rxa2 {[%emt 0:01:18]} 39. Re7+ {[%emt 0:00:26]} Kf6 {[%emt 0:00:04]} 40. Rxh7 {[%emt 0:00:00]} Rb2 {[%emt 0:00:00]} 41. Rh6 {[%emt 0:04:58]} Be8 {[%emt 0:05:31]} 42. Rh8 {[%emt 0:04:47]} Rxb3+ {[%emt 0:00:35]} 43. Kf2 {[%emt 0:04:46]} Bd7 {[%emt 0:01:24]} 44. Rh6 {[%emt 0:03:51]} Bf5 {[%emt 0:05:28]} 45. Bxf5 {[%emt 0:03:32]} Kxf5 {[%emt 0:00:01]} 46. Ke2 {[%emt 0:01:22]} Rg3 {[%emt 0:00:39]} 47. Rh8 {[%emt 0:02:13]} Ke5 {[%emt 0:02:00]} 48. Ra8 {[%emt 0:02:01]} b3 {[%emt 0:03:47]} 49. Kf2 {[%emt 0:01:29]} Rxh3 {[%emt 0:00:19]} 50. Kg2 {[%emt 0:00:19]} Rc3 {[%emt 0:00:43]} 51. Rxa6 {[%emt 0:01:13]} b2 {[%emt 0:00:39]} 52. Rb6 {[%emt 0:00:14]} Rc2+ {[%emt 0:00:03]} 53. Kf3 {[%emt 0:01:12]} Kxd5 {[%emt 0:00:05]} 54. Ke3 {[%emt 0:00:49]} Kc4 {[%emt 0:01:57]} 55. Rb8 {[%emt 0:01:16]} Rc3+ {[%emt 0:02:34]} 56. Ke4 {[%emt 0:02:27]} Rb3 {[%emt 0:00:22]} 57. Rc8+ {[%emt 0:00:21]} Kb4 {[%emt 0:00:02]} 58. Rb8+ {[%emt 0:00:39]} Kc3 {[%emt 0:00:05]} 59. Rc8+ {[%emt 0:00:36]} Kd2 {[%emt 0:00:04]} 60. Rd8+ {[%emt 0:00:52]} Ke2 {[%emt 0:00:05]} 61. Rh8 {[%emt 0:00:20]} Re3+ {[%emt 0:00:40]} 62. Kd4 {[%emt 0:00:20]} b1=Q {[%emt 0:00:31]} 63. Rh2+ {[%emt 0:00:15]} Kf3 {[%emt 0:00:24]} 64. Rh3+ {[%emt 0:00:07]} Kf4 {[%emt 0:00:05]} 65. Rxe3 {[%emt 0:00:17]} Qb4+ {[%emt 0:00:09]} 66. Kd3 {[%emt 0:00:22]} Qb3+ {[%emt 0:00:06]} 67. Kd2 {[%emt 0:00:04]} Qxe3+ {[%emt 0:00:07]} 68. Kd1 {[%emt 0:00:05]} Qf2 {[%emt 0:00:12]} 69. Kc1 {[%emt 0:00:03]} Ke3 {[%emt 0:00:06]} 70. Kb1 {[%emt 0:00:04]} Kd3 {[%emt 0:00:03]} 71. Ka1 {[%emt 0:00:04]} Kc3 {[%emt 0:00:05]} 72. Kb1 {[%emt 0:00:04]} Qb2# {[%emt 0:00:05]} 0-1

[Event "European School-ch 2019"]
[Site "Mamaia"]
[Date "2019.06.01"]
[Round "2.46"]
[White "Babic, Masa"]
[Black "Karas, Eugenia"]
[Result "1-0"]
[ECO "A07"]
[WhiteElo "1715"]
[BlackElo "1372"]
[Annotator "NA"]
[PlyCount "103"]
[EventDate "2019.05.31"]
[EventType "swiss"]
[EventCountry "ROU"]
[SourceTitle "playchess.com"]
[Source "ChessBase"]
[SourceQuality "1"]
[TimeControl "40/5400+30:1800+30"]

1. Nf3 {[%emt 0:00:00]} d5 {[%emt 0:00:00]} 2. g3 {[%emt 0:00:00]} Nf6 {[%emt 0:00:00]} 3. Bg2 {[%emt 0:00:00]} c6 {[%emt 0:00:00]} 4. O-O {[%emt 0:00:00]} Bg4 {[%emt 0:00:23]} 5. d4 {[%emt 0:01:41]} e6 {[%emt 0:00:17]} 6. b3 {[%emt 0:01:04]} Nbd7 {[%emt 0:00:18]} 7. Bb2 {[%emt 0:00:29]} Be7 {[%emt 0:00:38]} 8. Nbd2 {[%emt 0:00:34]} O-O {[%emt 0:00:22]} 9. h3 {[%emt 0:03:09]} Bh5 {[%emt 0:00:22]} 10. Rc1 {[%emt 0:01:43]} c5 {[%emt 0:03:06]} 11. c4 {[%emt 0:02:33]} Rc8 {[%emt 0:02:38]} 12. cxd5 {[%emt 0:02:11]} Nxd5 {[%emt 0:02:58]} 13. Nc4 {[%emt 0:07:05]} b5 {[%emt 0:03:41]} 14. Nce5 {[%emt 0:01:41]} f6 {[%emt 0:01:35]} 15. Nxd7 {[%emt 0:00:16]} Qxd7 {[%emt 0:00:17]} 16. dxc5 {[%emt 0:01:58]} Bxc5 {[%emt 0:02:56]} 17. e4 {[%emt 0:02:46]} Nb6 {[%emt 0:00:22]} 18. Qe2 {[%emt 0:01:50]} Qe8 {[%emt 0:02:47]} 19. Rfd1 {[%emt 0:03:37]} b4 {[%emt 0:04:43]} 20. g4 {[%emt 0:01:08]} Bg6 {[%emt 0:03:17]} 21. Bd4 {[%emt 0:01:30]} Bxd4 {[%emt 0:02:04]} 22. Nxd4 {[%emt 0:00:29]} Rxc1 {[%emt 0:02:32]} 23. Rxc1 {[%emt 0:00:05]} Qd7 {[%emt 0:00:23]} 24. Rd1 {[%emt 0:04:12]} Rd8 {[%emt 0:01:37]} 25. Rd2 {[%emt 0:05:21]} e5 {[%emt 0:04:16]} 26. Nf3 {[%emt 0:00:39]} Qc7 {[%emt 0:01:18]} 27. Rc2 {[%emt 0:02:51]} Qd7 {[%emt 0:03:01]} 28. Rc1 {[%emt 0:02:02]} Qd3 {[%emt 0:01:55]} 29. Qxd3 {[%emt 0:02:56]} Rxd3 {[%emt 0:00:08]} 30. Ne1 {[%emt 0:06:39]} Rd2 {[%emt 0:01:25]} 31. Rc2 {[%emt 0:00:50]} Rd7 {[%emt 0:01:31]} 32. f3 {[%emt 0:02:38]} Kf7 {[%emt 0:01:30]} 33. Bf1 {[%emt 0:00:28]} Na8 {[%emt 0:13:46]} 34. Nd3 {[%emt 0:00:54]} Rb7 {[%emt 0:01:25]} 35. Nc5 {[%emt 0:03:49]} Rc7 {[%emt 0:01:31]} 36. Bc4+ {[%emt 0:00:24]} Ke7 {[%emt 0:00:46]} 37. Na6 {[%emt 0:02:00]} Rc6 {[%emt 0:02:01]} 38. Nxb4 {[%emt 0:00:03]} Rc8 {[%emt 0:02:36]} 39. Nd5+ {[%emt 0:00:34]} Kd6 {[%emt 0:00:46]} 40. Rd2 {[%emt 0:00:00]} Kc5 {[%emt 0:00:00]} 41. b4+ {[%emt 0:00:55]} Kxc4 {[%emt 0:02:58]} 42. Rc2+ {[%emt 0:00:04]} Kb5 {[%emt 0:00:52]} 43. Rxc8 {[%emt 0:00:05]} Nb6 {[%emt 0:00:37]} 44. Nxb6 {[%emt 0:00:08]} axb6 {[%emt 0:00:11]} 45. a3 {[%emt 0:00:09]} Ka4 {[%emt 0:00:22]} 46. Rb8 {[%emt 0:00:16]} Kxa3 {[%emt 0:00:42]} 47. Rxb6 {[%emt 0:00:05]} Be8 {[%emt 0:00:47]} 48. Kf2 {[%emt 0:00:04]} Ka4 {[%emt 0:00:12]} 49. h4 {[%emt 0:00:13]} Bb5 {[%emt 0:00:19]} 50. Rb7 {[%emt 0:00:17]} g5 {[%emt 0:00:38]} 51. h5 {[%emt 0:00:04]} h6 {[%emt 0:00:33]} 52. Rb6 {[%emt 0:00:05]} 1-0

[Event "European School-ch 2019"]
[Site "Mamaia"]
[Date "2019.06.01"]
[Round "2.47"]
[White "Lyukina, Sofya"]
[Black "Babic, Milana"]
[Result "0-1"]
[ECO "B13"]
[WhiteElo "1252"]
[BlackElo "1677"]
[Annotator "NA"]
[PlyCount "82"]
[EventDate "2019.05.31"]
[EventType "swiss"]
[EventCountry "ROU"]
[SourceTitle "playchess.com"]
[Source "ChessBase"]
[SourceQuality "1"]
[TimeControl "40/5400+30:1800+30"]

1. e4 {[%emt 0:00:00]} c6 {[%emt 0:00:00]} 2. d4 {[%emt 0:00:00]} d5 {[%emt 0:00:00]} 3. exd5 {[%emt 0:00:47]} cxd5 {[%emt 0:00:00]} 4. Nf3 {[%emt 0:01:12]} Nc6 {[%emt 0:00:04]} 5. c3 {[%emt 0:03:03]} Nf6 {[%emt 0:00:32]} 6. Bd3 {[%emt 0:00:26]} Bg4 {[%emt 0:00:40]} 7. h3 {[%emt 0:03:09]} Bh5 {[%emt 0:00:07]} 8. Bf4 {[%emt 0:01:11]} e6 {[%emt 0:00:38]} 9. O-O {[%emt 0:00:36]} Bd6 {[%emt 0:02:13]} 10. Bxd6 {[%emt 0:01:01]} Qxd6 {[%emt 0:00:04]} 11. Nbd2 {[%emt 0:02:38]} O-O {[%emt 0:01:02]} 12. Rc1 {[%emt 0:01:11]} Rac8 {[%emt 0:03:17]} 13. Qe2 {[%emt 0:00:48]} Rfe8 {[%emt 0:03:05]} 14. Rfe1 {[%emt 0:03:29]} e5 {[%emt 0:02:34]} 15. dxe5 {[%emt 0:02:59]} Nxe5 {[%emt 0:00:07]} 16. Qf1 {[%emt 0:07:01]} Nxf3+ {[%emt 0:01:24]} 17. Nxf3 {[%emt 0:00:15]} Bxf3 {[%emt 0:00:12]} 18. gxf3 {[%emt 0:00:14]} Qf4 {[%emt 0:01:02]} 19. Qg2 {[%emt 0:00:44]} Qd2 {[%emt 0:01:21]} 20. Red1 {[%emt 0:02:50]} Qf4 {[%emt 0:04:35]} 21. Kh1 {[%emt 0:01:01]} d4 {[%emt 0:04:36]} 22. c4 {[%emt 0:05:01]} Re5 {[%emt 0:01:40]} 23. Rg1 {[%emt 0:02:59]} g6 {[%emt 0:00:11]} 24. Rcd1 {[%emt 0:02:08]} Rcc5 {[%emt 0:01:07]} 25. Qg3 {[%emt 0:01:20]} Qh6 {[%emt 0:00:57]} 26. b4 {[%emt 0:01:46]} Rg5 {[%emt 0:01:46]} 27. Qb8+ {[%emt 0:00:29]} Kg7 {[%emt 0:00:04]} 28. bxc5 {[%emt 0:00:54]} Qxh3+ {[%emt 0:00:05]} 29. Qh2 {[%emt 0:04:22]} Qxf3+ {[%emt 0:00:04]} 30. Rg2 {[%emt 0:01:51]} Qxd1+ {[%emt 0:00:06]} 31. Qg1 {[%emt 0:00:20]} Rh5+ {[%emt 0:00:32]} 32. Rh2 {[%emt 0:00:39]} Rxh2+ {[%emt 0:00:10]} 33. Kxh2 {[%emt 0:00:15]} Qxd3 {[%emt 0:00:04]} 34. Qc1 {[%emt 0:00:31]} Ng4+ {[%emt 0:00:45]} 35. Kg2 {[%emt 0:00:19]} Ne5 {[%emt 0:00:37]} 36. Qf4 {[%emt 0:00:25]} Nxc4 {[%emt 0:00:18]} 37. a4 {[%emt 0:01:11]} g5 {[%emt 0:01:56]} 38. Qg4 {[%emt 0:01:26]} Ne5 {[%emt 0:00:19]} 39. Qh5 {[%emt 0:00:43]} Qf3+ {[%emt 0:03:34]} 40. Qxf3 {[%emt 0:00:00]} Nxf3 {[%emt 0:00:00]} 41. Kxf3 {[%emt 0:00:40]} f5 {[%emt 0:00:07] Ke4} 0-1